[Event "41st Zalakaros Festival 2022"]
[Site "Zalakaros"]
[Date "2022.06.08"]
[Round "4.10"]
[White "Trajber, Daniel"]
[Black "Demeter, Dorina"]
[Result "0-1"]
[ECO "C45"]
[WhiteElo "2090"]
[BlackElo "2235"]
[Annotator "TA"]
[PlyCount "56"]
[EventDate "2022.06.05"]
[EventType "swiss"]
[EventCountry "HUN"]
[SourceTitle "playchess.com"]
[Source "ChessBase"]
[SourceQuality "1"]
[TimeControl "40/5400+30:1800+30"]

{[%evp 14,56,5,-30,-25,-31,-31,-69,-20,-100,-23,-2,5,-70,-61,-69,-33,-164,-50,-525,-523,-752,-407,-412,-266,-291,-250,-404,-365,-991,-778,-753,-739,-804,-799,-2315,-2245,-2209,-2200,-2134,-2110,-5497,-5497,-29997,-29998]} 1. e4 {[%emt 0:00:39]} e5 {[%emt 0:00:36]} 2. Nf3 {[%emt 0:00:26]} Nc6 {[%emt 0:00:08]} 3. d4 {[%emt 0:00:47]} exd4 {[%emt 0:00:06]} 4. Nxd4 {[%emt 0:00:27]} Nf6 {[%emt 0:00:33]} 5. Nxc6 {[%emt 0:00:54]} bxc6 {[%emt 0:00:11]} 6. e5 {[%emt 0:00:34]} Qe7 {[%emt 0:00:14]} 7. Qe2 {[%emt 0:00:48]} Nd5 {[%emt 0:00:06]} 8. h4 {[%emt 0:01:07]} (8. c4 $5 {[%cal Rc4d5]} Nb6 9. b3 $11) 8... Qe6 {[%emt 0:04:11] C45: Scotch Game.} 9. c4 {[%emt 0:03:04]} Nb6 {[%emt 0:03:18]} ({Much weaker is} 9... Bb4+ 10. Bd2 Bxd2+ 11. Nxd2 $11) 10. Nc3 {[%emt 0:05:43]} a5 {[%emt 0:08:06]} (10... Bb4 $15 {is more appropriate.} 11. Bd2 O-O) 11. g3 {[%emt 0:04:45] [#]} (11. Be3 $11) 11... Ba6 {[%emt 0:07:55]} (11... Bb4 $1 $17 {White must now prevent ...0-0.} 12. Bd2 O-O) 12. b3 $11 {[%emt 0:03:33]} Bb4 {[%emt 0:04:42]} 13. Bd2 {[%emt 0:04:06]} (13. Bb2 $1 $11) 13... O-O $15 {[%emt 0:02:14]} 14. Bh3 {[%emt 0:10:30]} Qe7 {[%emt 0:01:54] [#]} 15. f4 $146 {[%emt 0:07:14]} ({White should try} 15. O-O $15) ({Predecessor:} 15. O-O d5 16. Bg5 Qe8 17. Qg4 Bxc3 18. Bf6 g6 19. Qg5 Bxe5 20. Bxe5 f6 21. Bxf6 {0-1 (43) Vivas,F (1951)-Sirosh,I (2405) Chess.com INT 2020}) 15... a4 {[%emt 0:09:14]} (15... d5 $19 {[%cal Rd5c4]} 16. exd6 Qxd6) 16. Ne4 $2 {[%emt 0:05:53][%mdl 8192]} (16. Kf2 $15) 16... axb3 $19 {[%emt 0:03:09]} 17. Bf5 {[%emt 0:13:34][%cal Of5h7] [#] And now Bxh7+! would win.} Bxd2+ {[%emt 0:09:59]} 18. Nxd2 {[%emt 0:03:49]} Nxc4 {[%emt 0:02:52]} 19. axb3 {[%emt 0:04:32]} Nxd2 {[%emt 0:04:11]} 20. Rxa6 {[%emt 0:04:09]} (20. Qxd2 Bd3 21. Rxa8 Rxa8 22. Qxd3 Ra1+ 23. Kf2 Rxh1 24. Kg2) 20... Qb4 {[%emt 0:03:39] Threatens to win with ...Ne4+.} ({Don't blunder} 20... Rxa6 $2 21. Qxa6 Qc5 22. Kxd2 $19) 21. Kd1 $2 {[%emt 0:10:51]} (21. Qxd2 Qxd2+ 22. Kxd2 Rxa6 23. Kc3) 21... Qxb3+ {[%emt 0:04:57]} 22. Kxd2 {[%emt 0:05:36]} Qd5+ {[%emt 0:00:08]} 23. Ke3 {[%emt 0:00:27]} Qxh1 {[%emt 0:01:16]} 24. Bxd7 {[%emt 0:01:15]} Qc1+ {[%emt 0:00:39]} 25. Ke4 {[%emt 0:00:59]} Rxa6 {[%emt 0:02:44]} 26. Qxa6 {[%emt 0:00:09]} Qe1+ {[%emt 0:00:09]} 27. Kf5 {[%emt 0:00:49]} g6+ {[%emt 0:00:21]} 28. Kf6 {[%emt 0:01:23]} Qxg3 {[%emt 0:00:12] Weighted Error Value: White=1.56/Black=0.44} 0-1

[Event "41st Zalakaros Festival 2022"]
[Site "Zalakaros"]
[Date "2022.06.09"]
[Round "5.1"]
[White "Kantor, Gergely"]
[Black "Papp, Levente"]
[Result "1/2-1/2"]
[ECO "C11"]
[WhiteElo "2587"]
[BlackElo "2401"]
[Annotator "TA"]
[PlyCount "70"]
[EventDate "2022.06.05"]
[EventType "swiss"]
[EventCountry "HUN"]
[SourceTitle "playchess.com"]
[Source "ChessBase"]
[SourceQuality "1"]
[TimeControl "40/5400+30:1800+30"]

{[%evp 10,70,19,13,59,41,51,57,83,76,87,73,110,102,107,65,73,30,99,107,96,97,109,108,106,104,215,64,62,26,92,86,83,86,94,84,77,85,61,67,79,46,46,46,46,24,39,24,24,24,24,25,25,25,24,0,89,0,23,23,23,23,23]} 1. e4 {[%emt 0:04:30]} e6 {[%emt 0:01:18]} 2. d4 {[%emt 0:00:04]} d5 {[%emt 0:00:07]} 3. Nc3 {[%emt 0:00:02]} Nf6 {[%emt 0:00:41]} 4. Bg5 {[%emt 0:02:23]} dxe4 {[%emt 0:00:27]} 5. Nxe4 {[%emt 0:00:11]} Be7 {[%emt 0:00:06]} 6. Nxf6+ {[%emt 0:00:06]} gxf6 {[%emt 0:00:59] C13: French: Classical System: 4 Bg5 Be7, Alekhine-Chatard Attack.} (6... Bxf6 $11 {is superior.} 7. Bxf6 Qxf6) 7. Be3 $14 {[%emt 0:14:33] 7.Be3 scores better than 7.Bf4.} Nd7 {[%emt 0:15:00]} 8. Nf3 {[%emt 0:04:04]} c6 {[%emt 0:10:59] White is slightly better.} 9. Bd3 {[%emt 0:02:42] [#]} a6 $146 {[%emt 0:10:37]} ({Predecessor:} 9... b6 10. Qe2 Bb7 11. O-O-O Qc7 12. Kb1 O-O-O 13. c4 Nf8 14. c5 Ng6 15. g3 f5 {1-0 (26) Harper,R (2218)-Pecorelli Garcia,H (2400) Paramaribo 2015}) 10. Qe2 {[%emt 0:01:48]} b5 {[%emt 0:01:00]} 11. O-O {[%emt 0:08:35]} Bb7 {[%emt 0:00:13]} 12. c3 {[%emt 0:08:41]} c5 {[%emt 0:05:43]} 13. Bf4 {[%emt 0:18:39]} Qb6 {[%emt 0:09:40]} (13... cxd4 $11 14. cxd4 Nb6) 14. a4 $16 {[%emt 0:03:00][%cal Ra4b5] White is more active.} c4 {[%emt 0:04:50]} 15. Be4 {[%emt 0:03:25]} f5 {[%emt 0:09:04]} 16. Bxb7 {[%emt 0:06:55]} Qxb7 {[%emt 0:00:02]} 17. Rfd1 {[%emt 0:00:23][%cal Od4d5] Hoping for d5!} Nf6 {[%emt 0:07:35]} (17... Qe4 $16 18. Qxe4 fxe4) 18. Be5 $2 {[%emt 0:09:41]} (18. axb5 $18 axb5 19. Rxa8+ Qxa8 20. Qe5) 18... O-O $14 {[%emt 0:00:58]} 19. h3 {[%emt 0:02:46]} Qd5 {[%emt 0:06:30]} (19... Nd5 $11 {remains equal.}) 20. Qe3 {[%emt 0:02:42]} Ne4 {[%emt 0:01:26] Prevents Qg5+.} 21. Nd2 {[%emt 0:00:38] Black must now prevent Nxe4.} ({But not} 21. Qh6 $6 f6 $11) 21... f6 {[%emt 0:01:58]} (21... Bg5 $2 22. Nxe4 $1 Qxe5 23. Qxg5+ $18) 22. Bf4 {[%emt 0:00:05]} (22. Bg3 {feels hotter.} Nxg3 23. Qxg3+ Kf7 24. Qh4) 22... Nxd2 {[%emt 0:04:28]} 23. Rxd2 {[%emt 0:00:53] And now Bh6 would win.} Rfe8 {[%emt 0:00:06]} 24. Re2 {[%emt 0:01:09]} Kf7 {[%emt 0:01:40]} 25. axb5 {[%emt 0:01:38]} axb5 {[%emt 0:00:05]} 26. Rae1 {[%emt 0:00:02][%cal Re3e6]} Ra6 {[%emt 0:00:24]} 27. Bg3 {[%emt 0:00:15] Black should prevent Qh6.} Rg8 {[%emt 0:02:01]} 28. Qh6 {[%emt 0:00:48]} Rg7 $1 {[%emt 0:00:12]} 29. Qh5+ {[%emt 0:00:58]} Kf8 {[%emt 0:00:45]} 30. Re3 {[%emt 0:00:49]} Rg5 {[%emt 0:01:46]} 31. Qh6+ {[%emt 0:00:21]} ({Worse is} 31. Qxh7 f4 32. Rf3 (32. Qh8+ $2 Kf7 $17) 32... fxg3 33. fxg3 b4 $17) 31... Kg8 {[%emt 0:00:22][%cal Of5f4] Threatens to win with ...f4!} 32. Rf3 {[%emt 0:00:31][%cal Og3h4]} Ra2 {[%emt 0:02:02] [#]} (32... Rg6 $1 $11 33. Qh5 Ra2) 33. Qh4 {[%emt 0:02:21]} (33. Bh4 $1 $16 Rg6 (33... Rg7 34. Rg3) 34. Rg3 Rxg3 35. Bxg3) 33... b4 {[%emt 0:01:46]} (33... Rxb2 $5 {[%cal Rb5b4]} 34. Qf4 b4 $11) 34. Rfe3 {[%emt 0:00:25]} Ra6 {[%emt 0:00:36]} 35. Kh1 {[%emt 0:01:20]} b3 {[%emt 0:00:58] Weighted Error Value: White=0.20 (precise) /Black=0.20 (precise)} 1/2-1/2

[Event "41st Zalakaros Festival 2022"]
[Site "Zalakaros"]
[Date "2022.06.09"]
[Round "5.2"]
[White "Sammed Jaykumar, Shete"]
[Black "Pranav Vijay"]
[Result "0-1"]
[ECO "E10"]
[WhiteElo "2400"]
[BlackElo "2265"]
[Annotator "TA"]
[PlyCount "95"]
[EventDate "2022.06.05"]
[EventType "swiss"]
[EventCountry "HUN"]
[SourceTitle "playchess.com"]
[Source "ChessBase"]
[SourceQuality "1"]
[TimeControl "40/5400+30:1800+30"]

{[%evp 11,95,42,21,0,12,6,16,14,21,21,41,35,54,51,67,62,62,73,79,89,94,89,89,89,100,81,76,65,74,57,45,53,48,55,218,212,219,215,234,227,223,214,306,297,255,-62,-52,-59,-61,-61,0,0,0,-22,-14,-352,-150,-220,-224,-222,-227,-220,-218,-225,-217,-222,-231,-221,-226,-233,-235,-226,-225,-343,-332,-341,-334,-342,699,-416,-268,-402,-396,-5118,-4132,-917]} 1. d4 {[%emt 0:00:57]} Nf6 {[%emt 0:06:02]} 2. c4 {[%emt 0:00:09]} e6 {[%emt 0:00:06]} 3. Nf3 {[%emt 0:00:22]} c5 {[%emt 0:00:51]} 4. g3 {[%emt 0:01:41]} cxd4 {[%emt 0:00:13]} 5. Nxd4 {[%emt 0:00:24]} Nc6 {[%emt 0:00:06]} 6. Bg2 {[%emt 0:01:26]} Bc5 {[%emt 0:00:17]} 7. Nxc6 {[%emt 0:01:32] A32: Symmetrical English: 2 Nf3 Nf6 3 d4 cxd4 4 Nxd4 e6.} bxc6 {[%emt 0:00:08]} 8. O-O {[%emt 0:00:11]} O-O {[%emt 0:00:34]} 9. Qc2 {[%emt 0:01:05] The position is equal.} Be7 {[%emt 0:04:40] [#]} 10. Rd1 $146 {[%emt 0:01:17]} ({Predecessor:} 10. e4 e5 11. Nc3 d6 12. b3 Be6 13. Rd1 Nd7 14. Be3 Qc7 15. Rac1 Rab8 16. Qd2 {½-½ (56) Cosma,E (2340)-Hou,Y (2578) Dresden 2008}) 10... Ba6 {[%emt 0:04:05]} 11. e4 {[%emt 0:14:50]} e5 {[%emt 0:08:11]} 12. b3 {[%emt 0:02:58]} Bc5 {[%emt 0:01:43]} 13. Ba3 {[%emt 0:05:54]} Bxa3 {[%emt 0:04:23]} 14. Nxa3 {[%emt 0:00:11]} Qa5 {[%emt 0:00:07] Prevents Qc3.} 15. Nb1 {[%emt 0:00:45]} Rad8 {[%emt 0:03:27]} 16. Nc3 {[%emt 0:00:44] Inhibits d5.} d6 {[%emt 0:00:10]} 17. Rd3 {[%emt 0:02:36]} Bc8 {[%emt 0:01:54]} 18. Rad1 {[%emt 0:02:46]} Bg4 {[%emt 0:01:18]} 19. R1d2 {[%emt 0:14:28]} Ne8 {[%emt 0:08:13]} 20. Na4 {[%emt 0:19:40]} f5 {[%emt 0:13:16]} 21. Rc3 {[%emt 0:01:31]} f4 {[%emt 0:04:17]} 22. c5 {[%emt 0:04:11]} Nc7 $2 {[%emt 0:02:30]} (22... f3 $14 23. Bf1 d5) 23. cxd6 $18 {[%emt 0:01:52]} Ne6 {[%emt 0:00:15]} 24. Rcd3 {[%emt 0:02:52]} (24. Rxc6 $6 Nd4 25. Rc5 Qb4 $16) 24... Nd4 {[%emt 0:01:34]} 25. Rxd4 {[%emt 0:00:17]} exd4 {[%emt 0:00:05]} 26. Qc4+ {[%emt 0:00:04]} Kh8 {[%emt 0:01:16]} (26... Rf7 {is a better defense.} 27. Qxd4 Qh5) 27. Qxd4 {[%emt 0:00:13]} Qh5 {[%emt 0:02:22]} 28. e5 $2 {[%emt 0:04:50]} (28. Qxa7 Bf3 29. Bxf3 Qxf3 $16) (28. Nc5 $1 $18) 28... f3 $15 {[%emt 0:02:03]} 29. Bf1 {[%emt 0:00:06] Hoping for Rd1.} Rfe8 {[%emt 0:00:08]} 30. Qxa7 {[%emt 0:03:25] d7 is the strong threat.} Qxe5 {[%emt 0:01:43]} (30... Qf5 $1 $15) 31. Qd4 $1 $11 {[%emt 0:07:08]} Qh5 {[%emt 0:06:30]} 32. Rd1 {[%emt 0:00:50]} Bh3 $1 {[%emt 0:00:07] aiming for ...Bxf1.} 33. Bc4 {[%emt 0:01:42][%mdl 8192]} (33. Qh4 $1 $11 Qxh4 34. gxh4 Bxf1 35. Kxf1) 33... h6 {[%emt 0:01:37]} (33... Qh6 $1 $19 {[%cal Od8d6] is more deadly. ( -> ...Rxd6!)} 34. Qc3 Rxd6) 34. Nb6 {[%emt 0:03:51]} (34. Nc5 $17 Qe5 35. Qxe5 Rxe5 36. Nb7) 34... Qa5 $19 {[%emt 0:00:39] Really sharp!} 35. Bf1 {[%emt 0:00:21]} (35. b4 $2 Qxb4 36. Qa1 Rxd6 $19) 35... Bxf1 {[%emt 0:04:54]} 36. Rxf1 {[%emt 0:00:15]} Qf5 {[%emt 0:00:26]} (36... Qxa2 37. d7 Re6 38. Na4 $11) (36... c5 37. Nc4 $17) 37. g4 {[%emt 0:01:04] [#]} (37. d7 {leads to mate.} Qh3) 37... Qg6 $40 {[%emt 0:00:12][%mdl 128] And now ...Re4 would win. Black has strong attack.} 38. Nc4 {[%emt 0:00:15]} Re4 {[%emt 0:05:54]} 39. Ne5 {[%emt 0:00:08] [#]} Qxg4+ {[%emt 0:00:21]} ({And not} 39... Rxd4 40. Nxg6+ Kg8 41. Ne5 $17) 40. Nxg4 {[%emt 0:00:00]} Rxd4 {[%mdl 4096] Endgame KRR-KRN} 41. Ne5 {[%emt 0:00:51] Threatens to win with Nf7+.} Kg8 {[%emt 0:00:03] Prevents Nf7.} ({Less strong is} 41... R4xd6 42. Nf7+ Kh7 43. Nxd8 Rxd8 44. h3 $14) 42. d7 {[%emt 0:03:10]} (42. Nxc6 $142 Rg4+ 43. Kh1 Rxd6 44. Ne5) 42... Re4 {[%emt 0:00:56]} 43. Nxf3 {[%emt 0:00:07]} Rxd7 {[%emt 0:00:04]} 44. Rc1 {[%emt 0:00:05]} Rd2 $4 {[%mdl 8192]} 45. Ne1 $4 {[%emt 0:01:31][%mdl 8192]} (45. Nxd2 $18 {was the only winning move.} Re2 46. Rd1) 45... Rb2 {[%emt 0:00:27]} 46. a4 {[%emt 0:00:27]} (46. Nd3 {was called for.} Rd2 47. Rc3) 46... Rxb3 {[%emt 0:00:08]} 47. Nd3 $2 {[%emt 0:00:18]} (47. a5) 47... Rg4+ {[%emt 0:00:00]} 48. Kf1 {Black used his chance.  Weighted Error Value: White=0.60/Black=0.49} 0-1

[Event "41st Zalakaros Festival 2022"]
[Site "Zalakaros"]
[Date "2022.06.09"]
[Round "5.3"]
[White "Okhotnik, Vladimir"]
[Black "Farkas, Gabor"]
[Result "0-1"]
[ECO "B40"]
[WhiteElo "2336"]
[BlackElo "2324"]
[Annotator "TA"]
[PlyCount "68"]
[EventDate "2022.06.05"]
[EventType "swiss"]
[EventCountry "HUN"]
[SourceTitle "playchess.com"]
[Source "ChessBase"]
[SourceQuality "1"]
[TimeControl "40/5400+30:1800+30"]

{[%evp 9,68,8,12,8,13,13,13,6,28,15,39,31,26,11,23,-23,-3,-7,-6,-13,-13,-83,-67,-100,-116,-128,-121,-127,-120,-129,-24,-28,-14,-93,-110,-119,0,0,0,0,42,27,23,8,33,31,31,26,41,-27,-29,-2910,-2681,-29975,-29976,-29976,-29977,-29975,-29977,-29993,-29994]} 1. e4 {[%emt 0:00:35]} c5 {[%emt 0:00:48]} 2. Nf3 {[%emt 0:00:15]} e6 {[%emt 0:00:07]} 3. c4 {[%emt 0:00:11]} Nc6 {[%emt 0:00:05]} 4. Nc3 {[%emt 0:00:07]} e5 {[%emt 0:00:06]} 5. a3 {[%emt 0:00:16]} d6 {[%emt 0:00:24]} 6. b4 {[%emt 0:00:07] B40: Sicilian: 2...e6, Unusual lines.} g6 {[%emt 0:10:12]} 7. Nd5 {[%emt 0:01:41]} Bg7 {[%emt 0:09:05]} 8. d3 {[%emt 0:00:36] The position is equal.} Nf6 {[%emt 0:06:52]} 9. Be2 {[%emt 0:06:21] [#]} h6 $146 {[%emt 0:06:23]} ({Predecessor:} 9... Bg4 10. Qa4 O-O 11. Bg5 Bxf3 12. Bxf3 Nd4 13. Bg4 Kh8 14. O-O h6 15. Bxf6 Bxf6 16. bxc5 dxc5 {1-0 (46) Heimann,A (2435)-Hager,J (2217) Apolda 2009}) 10. bxc5 {[%emt 0:04:21]} dxc5 {[%emt 0:00:14]} 11. h3 {[%emt 0:05:40]} O-O {[%emt 0:01:43]} 12. Nh2 {[%emt 0:04:26]} (12. O-O $142) 12... Nxd5 {[%emt 0:06:22]} 13. cxd5 {[%emt 0:00:27]} Nd4 {[%emt 0:00:06]} 14. Nf3 {[%emt 0:03:03]} f5 {[%emt 0:03:02]} 15. Nxd4 {[%emt 0:03:16]} (15. O-O $11) 15... exd4 $17 {[%emt 0:06:35]} 16. Bf3 {[%emt 0:03:34][%cal Oe4e5]} fxe4 {[%emt 0:00:09]} 17. Bxe4 {[%emt 0:03:28]} Bf5 {[%emt 0:03:29]} 18. O-O {[%emt 0:01:01]} Bxe4 {[%emt 0:00:07] Black is more active.} 19. dxe4 {[%emt 0:00:04]} Qh4 {[%emt 0:05:25]} (19... Qe7 $17 20. Re1 Qf7) 20. f4 $11 {[%emt 0:05:01]} g5 {[%emt 0:01:46][%cal Bg6g5,Bg5f4][%mdl 32]} 21. Rb1 {[%emt 0:01:15]} (21. Ra2 $1 $11 {remains equal.}) 21... gxf4 $17 {[%emt 0:09:41][%cal Of4f3]} 22. Rxb7 {[%emt 0:00:17] [#]} Be5 {[%emt 0:01:25]} (22... f3 $1 $17 23. Rxf3 Rxf3 24. Qxf3 Rf8) 23. Qa4 $11 {[%emt 0:04:38] Qd7 would kill now.} Rad8 {[%emt 0:03:00][%cal Of4f3] Prevents Qd7. ...f3! is the strong threat.} 24. Qc6 {[%emt 0:02:33]} ({Not} 24. Rxa7 $2 f3 25. Qc6 Rd6 $19) 24... Rf6 {[%emt 0:06:39] Against Qg6+} 25. Qxc5 {[%emt 0:01:08] White wants to mate with Qe7.} (25. d6 $5 Rfxd6 26. Qxc5 $16) 25... Rg6 $1 {[%emt 0:03:09] ( -> ...f3). Really sharp!} 26. Rb3 {[%emt 0:00:51] Threatens to win with Rbf3.} Kh8 {[%emt 0:03:17][%cal Of4f3]} 27. d6 {[%emt 0:07:40]} (27. Qxa7 {gets mated.} Rdg8 28. Rb2 Qxh3 29. Kf2 Rxg2+ 30. Ke1 Qc3+ 31. Bd2 Qxb2) 27... Qg5 {[%emt 0:01:21][%csl Gg6][%cal Rg5g2] [#]} 28. Rf2 {[%emt 0:00:47][%cal Ob3g3] And now Rg3! would win.} Bxd6 {[%emt 0:01:06]} 29. Qxa7 {[%emt 0:07:02]} ({Don't blunder} 29. Qxd4+ $2 Be5 30. Qxe5+ Qxe5 $19) (29. Qc4 $14) 29... Bc5 $40 {[%emt 0:01:07][%mdl 128] White needs to defend precisely.} 30. Qa4 {[%emt 0:07:00][%mdl 8192] This move loses the game for White.} (30. Qf7 $11 d3 31. Bb2+ Rg7 32. Bxg7+ Qxg7 33. Qxg7+ Kxg7 34. Rb1) 30... d3 $19 {[%emt 0:00:31][%csl Gg6][%cal Rg5g2]} 31. Bb2+ {[%emt 0:00:25]} Kg8 {[%emt 0:00:48][%csl Gg6][%cal Rg5g2] Black mates.} 32. Qc4+ {[%emt 0:01:34]} Kf8 {[%emt 0:00:18][%csl Gg6][%cal Rg5g2]} 33. g4 {[%emt 0:01:22]} Bxf2+ {[%emt 0:00:06]} 34. Kxf2 {[%emt 0:01:43]} Qh4+ {[%emt 0:00:19] Weighted Error Value: White=0.50/Black=0.16 (very precise)} 0-1

[Event "41st Zalakaros Festival 2022"]
[Site "Zalakaros"]
[Date "2022.06.09"]
[Round "5.4"]
[White "Borsos, Bogdan"]
[Black "Horvath, Adam"]
[Result "0-1"]
[ECO "A46"]
[WhiteElo "2200"]
[BlackElo "2513"]
[Annotator "TA"]
[PlyCount "76"]
[EventDate "2022.06.05"]
[EventType "swiss"]
[EventCountry "HUN"]
[SourceTitle "playchess.com"]
[Source "ChessBase"]
[SourceQuality "1"]
[TimeControl "40/5400+30:1800+30"]

{[%evp 9,76,-7,5,-19,-17,-37,-35,-52,-54,-60,-42,-38,-35,-50,-44,-74,-31,-32,-27,-62,-37,-27,-35,-79,-60,-85,-75,-111,-71,-77,-92,-84,-80,-136,-119,-151,-147,-160,-156,-170,-172,-240,-239,-239,-173,-181,-192,-196,-149,-185,-110,-464,-456,-596,-608,-805,-802,-858,-849,-818,-791,-1163,-954,-2628,-1997,-29991,-29992,-29992,-29993]} 1. d4 {[%emt 0:01:51]} Nf6 {[%emt 0:00:38]} 2. Nf3 {[%emt 0:00:12]} e6 {[%emt 0:00:18]} 3. g3 {[%emt 0:00:24]} b5 {[%emt 0:00:41]} 4. a4 {[%emt 0:12:43]} b4 {[%emt 0:00:47]} 5. Bg2 {[%emt 0:00:50]} Bb7 {[%emt 0:00:38]} 6. Nbd2 {[%emt 0:02:51] A46: 1 d4 Nf6 2 Nf3 e6: Torre, London and Colle Systems.} c5 {[%emt 0:02:53]} 7. dxc5 {[%emt 0:01:57]} Bxc5 {[%emt 0:00:06]} 8. O-O {[%emt 0:09:22][%cal Oe2e4] Black is slightly better.} O-O {[%emt 0:05:33]} 9. a5 {[%emt 0:02:38]} Na6 {[%emt 0:13:27]} 10. Nb3 {[%emt 0:13:50]} Be7 $1 {[%emt 0:00:26]} 11. Be3 {[%emt 0:05:39] [#]} Be4 $146 {[%emt 0:07:12]} ({Predecessor:} 11... d6 12. Nfd4 Qc8 13. Bh3 Qc4 14. Qd3 Qd5 15. Nf3 Qh5 16. Bg2 Ng4 17. h3 Nxe3 18. Qxe3 {0-1 (42) Martinez Reyes,P (2337)-Fridman,D (2637) Chess.com INT 2015}) 12. Bd4 {[%emt 0:08:22]} d6 {[%emt 0:05:48]} (12... Qc7 $5 {[%cal Re4c2]} 13. Qd2 d6 $15) 13. Nbd2 {[%emt 0:01:46]} Bc6 {[%emt 0:03:57]} 14. b3 {[%emt 0:07:46]} e5 {[%emt 0:11:31]} 15. Bb2 {[%emt 0:00:19]} Qc7 {[%emt 0:01:43]} 16. Re1 {[%emt 0:04:49]} Nc5 {[%emt 0:07:08][%cal Ba6c5,Bc5e4,Be4c3][%mdl 32]} 17. Nc4 {[%emt 0:01:26]} Nce4 {[%emt 0:14:46]} 18. Ne3 {[%emt 0:05:41]} Rfe8 {[%emt 0:07:01]} 19. Nd2 {[%emt 0:01:47]} Nc3 $36 {[%emt 0:02:55][%mdl 2048] Black is really pushing.} 20. Bxc3 {[%emt 0:00:46]} bxc3 {[%emt 0:00:05]} 21. Ndf1 {[%emt 0:00:39]} (21. Ndc4 $142) 21... Bxg2 $17 {[%emt 0:01:12]} 22. Kxg2 {[%emt 0:01:42]} Qc6+ {[%emt 0:00:20]} 23. f3 {[%emt 0:01:15]} d5 {[%emt 0:00:33] Inhibits Nc4. 0x0.00207b120962dp-1022s more active pieces. The white rooks are badly placed.} 24. Nf5 {[%emt 0:01:04]} Bf8 {[%emt 0:00:41]} 25. Ra4 {[%emt 0:01:09]} (25. e4 $142) 25... g6 $19 {[%emt 0:01:14]} 26. Nh4 {[%emt 0:00:59]} Bh6 {[%emt 0:04:11]} 27. e3 {[%emt 0:00:46]} Rad8 {[%emt 0:01:26]} 28. Qe2 {[%emt 0:00:58]} Bg5 {[%emt 0:00:58]} ({Better is} 28... Bf8 $19 29. Rd1 d4) 29. Kf2 {[%emt 0:00:56]} d4 {[%emt 0:04:15]} (29... Nd7 $19 30. Kg1 Nc5) 30. e4 $2 {[%emt 0:00:36][%mdl 8192] Loses the game.} (30. Ng2 $17 {is tougher.}) 30... Bxh4 {[%emt 0:00:34]} ({Stronger than} 30... d3 31. cxd3 Bxh4 32. Rc4 $19) 31. gxh4 {[%emt 0:00:05]} Nh5 {[%emt 0:00:04] [#] aiming for ...Nf4.} 32. Kg1 {[%emt 0:01:44]} Nf4 {[%emt 0:01:59]} 33. Qc4 {[%emt 0:00:06]} Qf6 {[%emt 0:00:04] Threatens to win with ...d3.} 34. Ng3 {[%emt 0:00:16]} Qxh4 {[%emt 0:00:17]} 35. Rb4 {[%emt 0:00:19]} Rc8 {[%emt 0:01:05]} 36. Qa6 {[%emt 0:00:21]} d3 {[%emt 0:00:12]} 37. cxd3 {[%emt 0:00:14]} Qh3 {[%emt 0:00:09][%csl Gf4][%cal Rh3g2]} 38. Re2 {[%emt 0:00:19]} c2 {[%emt 0:01:10] Weighted Error Value: White=0.99/Black=0.15 (very precise)} 0-1

[Event "41st Zalakaros Festival 2022"]
[Site "Zalakaros"]
[Date "2022.06.09"]
[Round "5.5"]
[White "Csonka, Balazs"]
[Black "Hrbolka, Ladislav"]
[Result "1-0"]
[ECO "B96"]
[WhiteElo "2498"]
[BlackElo "2193"]
[Annotator "TA"]
[PlyCount "41"]
[EventDate "2022.06.05"]
[EventType "swiss"]
[EventCountry "HUN"]
[SourceTitle "playchess.com"]
[Source "ChessBase"]
[SourceQuality "1"]
[TimeControl "40/5400+30:1800+30"]

{[%evp 25,41,28,27,37,66,43,69,72,66,68,113,131,629,648,1865,1812,6316,3412]} 1. e4 {[%emt 0:00:34]} c5 {[%emt 0:00:52]} 2. Nf3 {[%emt 0:00:09]} d6 {[%emt 0:00:44]} 3. d4 {[%emt 0:00:13]} cxd4 {[%emt 0:00:18]} 4. Nxd4 {[%emt 0:00:06]} Nf6 {[%emt 0:00:33]} 5. Nc3 {[%emt 0:00:07]} a6 {[%emt 0:01:15]} 6. Bg5 {[%emt 0:02:03]} e6 {[%emt 0:01:43]} 7. f4 {[%emt 0:00:15][%cal Bf2f4,Bf4e5,Be5f6][%mdl 32]} b5 {[%emt 0:02:54]} 8. e5 {[%emt 0:05:44]} dxe5 {[%emt 0:01:00]} 9. fxe5 {[%emt 0:00:07]} Qc7 {[%emt 0:00:08]} 10. exf6 {[%emt 0:00:13]} Qe5+ {[%emt 0:00:13]} 11. Be2 {[%emt 0:00:32]} Qxg5 {[%emt 0:00:19]} 12. O-O {[%emt 0:00:10] The main line 12.0-0 scores better than 12.Qd3.} Ra7 {[%emt 0:11:22]} 13. Qd3 {[%emt 0:01:32]} Rd7 {[%emt 0:04:02][%cal Od7d4] And now ...Rxd4! would win.} 14. Ne4 {[%emt 0:00:12] B96: Sicilian Najdorf: 6 Bg5 e6 7 f4, lines other than 7...Qb6 and 7...Be7.} Qe5 {[%emt 0:04:04]} 15. Nf3 {[%emt 0:00:13][%cal Bd4f3,Bf3g5,Bg5f7,Bf7e5][%mdl 32] 0x0.001e62acd497dp-1022s more active pieces. The black rooks are badly placed.} Qxb2 {[%emt 0:15:14]} 16. Qe3 {[%emt 0:02:35] White is slightly better.} Bb7 {[%emt 0:05:24]} (16... gxf6 $2 17. Rab1 Qa3 18. Nxf6+ Kd8 19. Qb6+ Ke7 20. Ne5 $18) (16... Qxc2 $2 17. Rac1 Qc6 18. Rxc6 Nxc6 19. Qc3 $18) 17. Rab1 $1 {[%emt 0:01:20]} Qxc2 {[%emt 0:07:26] [#]} 18. Nfg5 {[%emt 0:07:13] Hoping for Rbc1.} h6 $2 {[%emt 0:13:07][%mdl 8192] [#]} (18... Qc7 $16) 19. Rbc1 $1 $18 {[%emt 0:03:02] White is clearly winning.} Qxa2 {[%emt 0:24:25] [#]} 20. Nxf7 {[%emt 0:05:07][%mdl 512] [#] Threatening mate with fxg7. Pair of Knights!} Rg8 $146 {[%emt 0:00:59]} (20... Qd5 21. Nxh8) ({Predecessor:} 20... Rxf7 21. Bh5 g6 22. Bxg6 Nd7 23. Qa7 Bc5+ 24. Rxc5 Nxc5 25. Qxc5 {1-0 (25) Van Delft,M (2364)-Rietveld,R (2238) Dieren 2010}) 21. Ne5 {[%emt 0:03:37] Black did not feel at home in the position after the opening.  Weighted Error Value: White=0.00 (flawless) /Black=0.92} 1-0